Cogmind - Beta 13 @@@ ROGUE MODE // 2024.06.03 @ 17:46:56 Player: wojo Result: Destroyed by XT-G56(R) with Subdweller Laser Performance ------------- Evolutions (0) 0 Regions Visited (2) 400 Robots Destroyed (14) 70 Value Destroyed (241) 241 Prototype IDs (3) 60 Alien Tech Used (0) 0 Bonus (0) 0 TOTAL SCORE: 771 Bonus ------- None Cogmind --------- Core Integrity 0/250 Matter 161/300 Energy 122/180 System Corruption 8% Temperature Cool (21) Movement Flying (200) Ox2 Location -10/Subcaves Parts ------- > --- POWER (1) -------- Meta Core > --- PROPULSION (2+1) - Flight Unit > --- UTILITY (2+1) ---- Weight Redist. System Structural Scanner > --- WEAPON (2) ------- Medium Laser Grenade Launcher > --- INVENTORY (5) ---- Ion Engine Grenade Launcher Peak State ------------ > --- POWER ------------ Meta Core > --- PROPULSION ------- Flight Unit > --- UTILITY ---------- Weight Redist. System Structural Scanner > --- WEAPON ----------- Grenade Launcher Grenade Launcher Mining Claw > --- INVENTORY -------- Ion Engine Medium Laser [Rating: 20] Favorites ----------- Power Ion Engine Engine Ion Engine Power Core Meta Core Propulsion Flight Unit Treads Light Treads Flight Unit Flight Unit Utility Weight Redist. System Device Weight Redist. System Storage Small Storage Unit Weapon Medium Laser Energy Gun Medium Laser Launcher Grenade Launcher Special Weapon Mining Laser Slashing Weapon Mining Claw Build | -11 -10 -10 ------- Run | Yrd Mat Sub Slots Evolved . | . . . Power . | . . . Propulsion . | . . . Utility . | . . . Weapon . | . . . Parts Attached 31 | 7 17 7 Power 3 | 1 1 1 Engine 2 | 1 1 . Core 1 | . . 1 Reactor . | . . . Propulsion 7 | 2 3 2 Treads 2 | 2 . . Leg . | . . . Wheel . | . . . Hover . | . . . Flight 5 | . 3 2 Utility 5 | 2 3 . Device 4 | 1 3 . Storage 1 | 1 . . Processor . | . . . Hackware . | . . . Protection . | . . . Artifact . | . . . Weapon 16 | 2 10 4 Energy Gun 5 | 2 2 1 Energy Cannon . | . . . Ballistic Gun . | . . . Ballistic Cannon . | . . . Launcher 6 | . 4 2 Special Weapon 1 | . 1 . Impact Weapon . | . . . Slashing Weapon 4 | . 3 1 Piercing Weapon . | . . . Special Melee Weapon . | . . . Unidentified Prototypes 1 | . . 1 Parts Lost 7 | . 2 5 Power 1 | . . 1 Propulsion 4 | . 1 3 Utility 1 | . 1 . Weapon 1 | . . 1 Highest Loss Streak 5 | . 2 5 To Critical Strikes . | . . . Average Slot Usage (%) 94 | . 95 85 Engine 13 | . 14 5 Treads 4 | . 5 . Flight 22 | . 22 21 Device 22 | . 22 26 Storage 2 | . 2 . Energy Gun 16 | . 18 5 Launcher 5 | . 4 12 Special Weapon 1 | . 1 . Slashing Weapon 3 | . 2 10 Naked Turns . | . . . Heaviest Build 15 | 15 15 15 Greatest Support 40 | 40 40 14 Greatest Overweight (x) 3 | 3 3 3 Average Overweight (x) . | . . . Largest Inventory Capacity 8 | 8 8 5 Average Capacity 5 | 7 5 5 Most Carried 5 | 1 5 5 Average Carried 3 | . 4 3 Final Capacity 8 | 8 5 5 Final Carried 5 | 1 5 2 Class Distribution -------------------- 100% | Mutant Dominant Class ---------------- Mutant | -10/Materials Mutant | -10/Subcaves Resources | -11 -10 -10 ----------- Run | Yrd Mat Sub Matter Collected 484 | 270 151 63 Remotely . | . . . Salvage Created 367 | 84 219 64 Parts 25 | 4 19 2 Haulers Intercepted 2 | . 2 . Recyclers Shooed . | . . . Parts Field Recycled . | . . . Retrieved Matter . | . . . Parts Self-Destructed . | . . . Prevented . | . . . Kills | -11 -10 -10 ------- Run | Yrd Mat Sub Combat Hostiles Destroyed 7 | . 5 2 AOE 7 | . 5 2 Classes Destroyed 9 | 2 6 1 Worker 1 | . 1 . Tunneler 1 | 1 . . Hauler 2 | . 2 . Recycler 1 | 1 . . Operator 1 | . 1 . Watcher 1 | . 1 . Swarmer 3 | . 3 . Grunt 2 | . 2 . Subdweller 2 | . . 2 Best Kill Streak 4 | 1 4 2 Combat Bots Only 3 | . 3 2 Max Kills in Single Turn 3 | 1 3 1 Gunslinging . | . . . Exploded 3 | . 3 1 Melee . | . . . Uniques/NPCs Destroyed . | . . . Combat | -11 -10 -10 -------- Run | Yrd Mat Sub Hostile Shots Fired 28 | . 7 21 Missed 10 | . 3 7 Damage Taken 677 | . 357 320 Core 265 | . 151 114 Absorbed by Shields . | . . . Core Remaining (%) 100 | 100 . . Volleys Fired 29 | 5 19 5 Largest 2 | 2 2 2 Hottest 100 | 100 100 60 Shots Fired 48 | 10 29 9 Gun 32 | 10 21 1 Cannon . | . . . Launcher 13 | . 5 8 Special 3 | . 3 . Kinetic . | . . . Thermal 35 | 10 24 1 Explosive 13 | . 5 8 Electromagnetic . | . . . Robot Hit Streak 11 | 5 11 8 Robot Miss Streak 4 | 4 2 . Penetration Max . | . . . Secondary Targets . | . . . Shots Hit Robots 39 | 6 25 8 Core Hits 23 | 3 17 3 Critical Kills . | . . . Critical Parts Destroyed . | . . . Critical Strikes . | . . . Melee Attacks 14 | . 12 2 Impact . | . . . Slashing 14 | . 12 2 Piercing . | . . . Sneak Attacks 1 | . 1 . Combat Hostiles . | . . . Follow-up Attacks . | . . . Damage Inflicted 1207 | 88 766 353 Guns 277 | 88 176 13 Cannons . | . . . Explosions 665 | . 377 288 Melee 265 | . 213 52 Ramming . | . . . Kinetic . | . . . Thermal 277 | 88 176 13 Explosive 665 | . 377 288 Electromagnetic . | . . . Impact . | . . . Slashing 265 | . 213 52 Piercing . | . . . Highest Corruption 8 | . 8 8 Average Corruption 6 | . 6 8 Corruption Purged . | . . . Corruption Blocked . | . . . Effects 11 | . 9 2 Message Errors 4 | . 3 1 Matter Fused 2 | . 2 . Heat Flow Errors 1 | . . 1 Data Loss (minor) 2 | . 2 . Data Loss (major) 1 | . 1 . Misfires 1 | . 1 . Overload Shots . | . . . Overflow Damage . | . . . Projectiles . | . . . Explosions . | . . . Melee . | . . . Knockbacks . | . . . Impact . | . . . Kinetic . | . . . Secondary . | . . . Self-Inflicted Damage . | . . . Shots . | . . . Rammed . | . . . Targets Rammed . | . . . Kicked . | . . . Crushed . | . . . Highest Temperature 165 | 156 106 165 Average Temperature 51 | 67 44 89 Received Heat Transfer 99 | . 21 78 Siege Activations . | . . . Robots Corrupted . | . . . Combat Hostiles . | . . . Parts Fried . | . . . Impact Corruptions . | . . . Robots Melted . | . . . Combat Hostiles . | . . . Parts Melted 3 | 2 1 . Heat Transferred 814 | 259 518 37 Parts Sabotaged . | . . . Parts Stolen . | . . . Parts Stripped . | . . . Power Chain Reactions . | . . . Alert | -11 -10 -10 ------- Run | Yrd Mat Sub Peak Influence 179 | 10 179 . Initial 6 | . 6 . Average 37 | 4 46 . Maximum Alert Level . | . . . Low Security (%) 100 | 100 100 . Level 1 . | . . . Level 2 . | . . . Level 3 . | . . . Level 4 . | . . . Level 5 . | . . . High Security . | . . . Max Security . | . . . Squads Dispatched 1 | . 1 . Investigation . | . . . Extermination . | . . . Reinforcement 1 | . 1 . Assault . | . . . Garrison . | . . . Intercept . | . . . Searches Triggered . | . . . Construction Impeded . | . . . Haulers Reinforced . | . . . Active Scanning Responses . | . . . Cargo Convoy Interrupts . | . . . Stealth | -11 -10 -10 --------- Run | Yrd Mat Sub Distress Signals 2 | . 2 . Communications Jammed . | . . . Distress Signals . | . . . Times Spotted 17 | . 14 3 Peak Tracking Total 7 | . 7 3 Tactical Retreats 2 | . 2 . Traps | -11 -10 -10 ------- Run | Yrd Mat Sub Traps Triggered 2 | . 2 . Indirectly . | . . . Trap Hack Attempts . | . . . Triggered . | . . . Disarmed . | . . . Reprogrammed . | . . . Reused . | . . . Traps Extracted . | . . . Installed . | . . . Triggered . | . . . Machines | -11 -10 -10 ---------- Run | Yrd Mat Sub Machines Disabled . | . . . Max in Single Turn . | . . . Machines Repaired . | . . . Machines Dismantled . | . . . Machines Sabotaged . | . . . Overloaded Fab Kills . | . . . Hacking | -11 -10 -10 --------- Run | Yrd Mat Sub Machines Accessed 4 | . 4 . Terminals 2 | . 2 . Fabricators . | . . . Repair Stations . | . . . Recycling Units 2 | . 2 . Scanalyzers . | . . . Garrison Access . | . . . Total Hacks 7 | . 7 . Successful 6 | . 6 . Failed 1 | . 1 . Catastrophic . | . . . Database Lockouts . | . . . Manual . | . . . Terminals 5 | . 5 . Fabricators . | . . . Repair Stations . | . . . Recycling Units 2 | . 2 . Scanalyzers . | . . . Garrison Access . | . . . Terminal Hacks 4 | . 4 . Prototype ID Bank 1 | . 1 . Locate Traps 1 | . 1 . Hauler Manifests 1 | . 1 . Registered Components 1 | . 1 . Fabricator Hacks . | . . . Repair Station Hacks . | . . . Recycling Unit Hacks 2 | . 2 . Report Inventory 2 | . 2 . Scanalyzer . | . . . Garrison Access Hacks . | . . . Unauthorized Hacks . | . . . Terminals . | . . . Fabricators . | . . . Repair Stations . | . . . Recycling Units . | . . . Scanalyzers . | . . . Garrison Access . | . . . Data Cores Recovered . | . . . Used . | . . . Hacking Detections 1 | . 1 . Full Trace Events . | . . . Feedback Events . | . . . Feedback Blocked . | . . . Robot Schematics Acquired . | . . . Robots Built . | . . . Authchips . | . . . Time . | . . . Total Robot Build Rating . | . . . Part Schematics Acquired . | . . . Parts Built . | . . . Authchips . | . . . Time . | . . . Total Part Build Rating . | . . . Parts Repaired . | . . . Time . | . . . Parts Recycled . | . . . Recycled Matter . | . . . Retrieved Matter . | . . . Retrieved Components . | . . . Parts Scanalyzed . | . . . Part Schematics Acquired . | . . . Parts Damaged . | . . . Bothacking | -11 -10 -10 ------------ Run | Yrd Mat Sub Used RIF Installer . | . . . Robots Hacked . | . . . Non-combat . | . . . Combat . | . . . Robot Hacks Applied . | . . . Relay Couplers Released . | . . . Fabnet Peak Effective % . | . . . Robots Rewired . | . . . Allies Hacked . | . . . Hacks Repelled . | . . . Allies | -11 -10 -10 -------- Run | Yrd Mat Sub Total Allies . | . . . Largest Group . | . . . Highest-Rated Group . | . . . Highest-Rated Ally . | . . . Total Orders . | . . . Ally Attacks . | . . . Total Damage . | . . . Kills . | . . . Allies Corrupted . | . . . Allies Melted . | . . . Intel | -11 -10 -10 ------- Run | Yrd Mat Sub Robot Analysis Total . | . . . Derelict Logs Recovered . | . . . Drone Launches . | . . . Drone Recoveries . | . . . Exploration | -11 -10 -10 ------------- Run | Yrd Mat Sub Turns Passed 615 | 119 449 47 Spaces Moved 800 | 62 696 42 Core 10 | 9 1 . Treads 103 | 53 50 . Legs . | . . . Wheels . | . . . Hover . | . . . Flight 687 | . 645 42 Fastest Speed 37 | 50 37 37 Average Speed 54 | 150 46 43 Slowest Speed 280 | 200 200 280 Overloaded Moves . | . . . Propulsion Burnouts . | . . . Robots Hopped 9 | . 9 . Cave-ins Triggered 1 | . 1 . Exploration Rate (%) 33 | 4 93 3 Regions Visited 2 Branch Regions 1 Pre-discovered Areas . | . . . Known Exits Taken . | . . . Unknown Exits Taken 2 | 1 1 . Scrap Searched . | . . . Spaces Dug 5 | . 5 . Terrain Destroyed 82 | . 53 29 Melee 2 | . 2 . Projectile 3 | . 3 . AOE 77 | . 48 29 Terrain Rammed . | . . . Walls Destroyed . | . . . Machines Disabled . | . . . Actions | -11 -10 -10 --------- Run | Yrd Mat Sub Total 883 | 74 752 57 Wait 1 | . . 1 Move 780 | 61 677 42 Hop 9 | . 9 . Pick Up 8 | 1 7 . Fast Attach 15 | 7 7 1 Attach 5 | . 2 3 Detach 2 | . 2 . Swap 11 | . 8 3 Drop 9 | . 9 . Fire 29 | 5 19 5 Melee 14 | . 12 2 Ram . | . . . Kick . | . . . Crush . | . . . Escape Stasis . | . . . Rewire . | . . . Trap . | . . . Miscellaneous . | . . . Route ------- -11/Scrapyard -10/Materials (discovered 4 exits: [*Mat x2] / [*Min] / [*Sub]) -10/Subcaves History --------- Turn | Location | Event 15 | -11/Scrapyard | Discovered new exit (range 16) 120 | -11/Scrapyard | Entered Materials 238 | -10/Materials | Discovered new exit (range 7) 300 | -10/Materials | Build established: Mutant 323 | -10/Materials | Crushed by falling debris 323 | -10/Materials | Core integrity fell below 50% 367 | -10/Materials | Discovered new exit (range 5) 396 | -10/Materials | Discovered new exit (range 15) 559 | -10/Materials | Discovered new exit (range 7) 569 | -10/Materials | Entered Subcaves 577 | -10/Subcaves | A Subdweller sparked back to life 577 | -10/Subcaves | A Subdweller sparked back to life 577 | -10/Subcaves | A Subdweller sparked back to life 580 | -10/Subcaves | Core integrity fell below 20% 605 | -10/Subcaves | Found Prototype Power Core 605 | -10/Subcaves | Identified Meta Core 606 | -10/Subcaves | Attached Meta Core, gained temporary slots: Propulsion, Utility, Weapon 616 | -10/Subcaves | Destroyed by XT-G56(R) with Subdweller Laser Last Messages --------------- 00594_ Flight Unit destroyed. 00595_ A|/6CVYTAUA4GHF=O M 4,